[Event "14th Poti Open-A 2019"]
[Site "Poti"]
[Date "2019.07.20"]
[Round "9.6"]
[White "Muradli, Mahammad"]
[Black "Chaqryan, Erik"]
[Result "1-0"]
[ECO "E73"]
[WhiteElo "2454"]
[BlackElo "2027"]
[Annotator "ChessBase"]
[PlyCount "115"]
[EventDate "2019.07.13"]
[EventType "swiss"]
[EventCountry "GEO"]
[SourceTitle "playchess.com"]
[Source "ChessBase"]
[SourceQuality "1"]
[TimeControl "40/5400+30:1800+30"]

1. d4 {[%emt 0:06:58]} Nf6 {[%emt 0:00:00]} 2. c4 {[%emt 0:00:03]} g6 {[%emt 0:00:00]} 3. Nc3 {[%emt 0:00:06]} Bg7 {[%emt 0:00:00]} 4. e4 {[%emt 0:00:03]} d6 {[%emt 0:00:00]} 5. Be2 {[%emt 0:00:06]} O-O {[%emt 0:00:00]} 6. Be3 {[%emt 0:00:04]} e5 {[%emt 0:00:49]} 7. d5 {[%emt 0:00:20]} a5 {[%emt 0:00:13]} 8. h4 {[%emt 0:00:05]} Na6 {[%emt 0:03:26]} 9. h5 {[%emt 0:02:08]} Nc5 {[%emt 0:01:19]} 10. Qc2 {[%emt 0:00:08]} c6 {[%emt 0:02:24]} 11. h6 {[%emt 0:03:08]} Bh8 {[%emt 0:00:09]} 12. Bxc5 {[%emt 0:02:36]} dxc5 {[%emt 0:00:04]} 13. Nf3 {[%emt 0:00:09]} a4 {[%emt 0:06:45]} 14. a3 {[%emt 0:07:09]} Qa5 {[%emt 0:04:08]} 15. O-O {[%emt 0:08:49]} Re8 {[%emt 0:11:02]} 16. Rad1 {[%emt 0:07:17]} cxd5 {[%emt 0:05:45]} 17. Nxd5 {[%emt 0:00:49]} Nxd5 {[%emt 0:00:11]} 18. cxd5 {[%emt 0:00:31]} Bd7 {[%emt 0:03:03]} 19. Nd2 {[%emt 0:08:02]} Bf6 {[%emt 0:22:46]} 20. Nc4 {[%emt 0:05:04]} Qc7 {[%emt 0:03:19]} 21. d6 {[%emt 0:06:07]} Qc6 {[%emt 0:00:08]} 22. Rd5 {[%emt 0:06:21]} Rac8 {[%emt 0:07:35]} 23. Na5 {[%emt 0:03:03]} Qb6 {[%emt 0:00:13]} 24. Qc3 {[%emt 0:00:05]} Bh8 {[%emt 0:10:01]} 25. Rfd1 {[%emt 0:01:18]} c4 {[%emt 0:04:02]} 26. Nxc4 {[%emt 0:01:45]} Qd8 {[%emt 0:00:02]} 27. Qb4 {[%emt 0:03:54]} Qh4 {[%emt 0:03:14]} 28. Nb6 {[%emt 0:02:37]} Rc2 {[%emt 0:00:01]} 29. g3 {[%emt 0:00:08]} Qxh6 {[%emt 0:01:09]} 30. Nxd7 {[%emt 0:00:07]} Rxe2 {[%emt 0:00:04]} 31. Qb5 {[%emt 0:00:06]} Qh5 {[%emt 0:05:30]} 32. Nf6+ {[%emt 0:06:01]} Bxf6 {[%emt 0:00:01]} 33. Qxe8+ {[%emt 0:00:01]} Kg7 {[%emt 0:00:01]} 34. d7 {[%emt 0:01:31]} Qf3 {[%emt 0:05:02]} 35. Rf1 {[%emt 0:00:13]} Rxf2 {[%emt 0:00:18]} 36. Rxf2 {[%emt 0:00:09]} Qxg3+ {[%emt 0:00:04]} 37. Kf1 {[%emt 0:00:06]} Qh3+ {[%emt 0:00:04]} 38. Ke2 {[%emt 0:01:53]} Qg4+ {[%emt 0:00:08]} 39. Kd2 {[%emt 0:02:31]} Bg5+ {[%emt 0:00:35]} 40. Kc3 {[%emt 0:00:00]} Qg3+ {[%emt 0:00:00]} 41. Kb4 {[%emt 0:01:48]} Qxf2 {[%emt 0:09:09]} 42. d8=Q {[%emt 0:04:45]} Qxb2+ {[%emt 0:02:54]} 43. Kxa4 {[%emt 0:01:15]} Qc2+ {[%emt 0:01:34]} 44. Kb5 {[%emt 0:02:06]} Qb3+ {[%emt 0:02:19]} 45. Ka5 {[%emt 0:03:47]} Qxa3+ {[%emt 0:01:31]} 46. Kb6 {[%emt 0:00:06]} Qb4+ {[%emt 0:06:52]} 47. Kc7 {[%emt 0:00:29]} Bxd8+ {[%emt 0:01:27]} 48. Rxd8 {[%emt 0:00:14]} Qxe4 {[%emt 0:00:44]} 49. Qf8+ {[%emt 0:00:14]} Kf6 {[%emt 0:00:01]} 50. Rd6+ {[%emt 0:00:20]} Kg5 {[%emt 0:00:09]} 51. Qe7+ {[%emt 0:01:58]} Kh6 {[%emt 0:01:20]} 52. Qxf7 {[%emt 0:00:21]} Qf4 {[%emt 0:00:22]} 53. Rf6 {[%emt 0:00:34]} Qc1+ {[%emt 0:00:18]} 54. Kb8 {[%emt 0:00:39]} Qc5 {[%emt 0:01:17]} 55. Qe6 {[%emt 0:01:58]} b5 {[%emt 0:01:44]} 56. Rf7 {[%emt 0:00:41]} b4 {[%emt 0:00:42]} 57. Qh3+ {[%emt 0:00:28]} Kg5 {[%emt 0:00:00]} 58. Qg3+ {[%emt 0:00:01]} 1-0

[Event "14th Poti Open-A 2019"]
[Site "Poti"]
[Date "2019.07.20"]
[Round "9.10"]
[White "Eynullayev, Atilla"]
[Black "Gharibyan, Mamikon"]
[Result "0-1"]
[ECO "A40"]
[WhiteElo "2228"]
[BlackElo "2350"]
[Annotator "ChessBase"]
[PlyCount "74"]
[EventDate "2019.07.13"]
[EventType "swiss"]
[EventCountry "GEO"]
[SourceTitle "playchess.com"]
[Source "ChessBase"]
[SourceQuality "1"]
[TimeControl "40/5400+30:1800+30"]

1. d4 {[%emt 0:00:00]} e6 {[%emt 0:00:39]} 2. c4 {[%emt 0:00:00]} c5 {[%emt 0:03:55]} 3. d5 {[%emt 0:02:25]} exd5 {[%emt 0:00:27]} 4. cxd5 {[%emt 0:00:07]} d6 {[%emt 0:01:16]} 5. Nc3 {[%emt 0:00:55]} a6 {[%emt 0:01:20]} 6. a4 {[%emt 0:00:30]} g6 {[%emt 0:00:30]} 7. Nf3 {[%emt 0:02:33]} Bg7 {[%emt 0:00:41]} 8. g3 {[%emt 0:00:47]} Nh6 {[%emt 0:02:58]} 9. Bg2 {[%emt 0:02:22]} O-O {[%emt 0:00:47]} 10. O-O {[%emt 0:01:50]} Nd7 {[%emt 0:00:45]} 11. Bf4 {[%emt 0:06:42]} Qe7 {[%emt 0:02:59]} 12. e4 {[%emt 0:05:00]} Ng4 {[%emt 0:02:25]} 13. Bg5 {[%emt 0:01:05]} f6 {[%emt 0:15:44]} 14. Bc1 {[%emt 0:11:36]} Nde5 {[%emt 0:20:05]} 15. Nxe5 {[%emt 0:01:09]} Nxe5 {[%emt 0:08:13]} 16. f4 {[%emt 0:03:44]} Nf7 {[%emt 0:00:01]} 17. Bd2 {[%emt 0:03:40]} f5 {[%emt 0:03:27]} 18. Re1 {[%emt 0:02:03]} Qf6 {[%emt 0:04:24]} 19. Rb1 {[%emt 0:22:54]} Bd7 {[%emt 0:06:11]} 20. Be3 {[%emt 0:07:00]} Rfe8 {[%emt 0:04:16]} 21. exf5 {[%emt 0:08:31]} Bxf5 {[%emt 0:04:26]} 22. Rc1 {[%emt 0:02:01]} g5 {[%emt 0:00:50]} 23. Qd2 {[%emt 0:04:23]} gxf4 {[%emt 0:00:30]} 24. Bxf4 {[%emt 0:00:30]} Ne5 {[%emt 0:00:30]} 25. Ne4 {[%emt 0:00:30]} Qg6 26. Re2 Re7 {[%emt 0:07:54]} 27. Bg5 {[%emt 0:04:35]} Rf7 {[%emt 0:00:29]} 28. Bf4 {[%emt 0:00:38]} Re7 {[%emt 0:01:39]} 29. Bg5 {[%emt 0:00:37]} Rc7 {[%emt 0:01:15]} 30. Rf1 {[%emt 0:02:40]} Rf8 {[%emt 0:00:27]} 31. h3 {[%emt 0:00:53]} Rcf7 {[%emt 0:00:37]} 32. Bf4 {[%emt 0:02:51]} h6 {[%emt 0:03:38]} 33. Nxc5 {[%emt 0:01:19]} Nc4 {[%emt 0:00:15]} 34. Qc1 {[%emt 0:00:06]} dxc5 {[%emt 0:00:53]} 35. Qxc4 {[%emt 0:00:07]} Bd3 {[%emt 0:00:12]} 36. Re6 {[%emt 0:00:10]} Qxg3 {[%emt 0:00:52]} 37. Qb3 {[%emt 0:01:44]} Rxf4 {[%emt 0:00:45]} 0-1

[Event "14th Poti Open-A 2019"]
[Site "Poti"]
[Date "2019.07.20"]
[Round "9.11"]
[White "Chkhaidze, Nikoloz"]
[Black "Yeritsyan, Hayk"]
[Result "1/2-1/2"]
[ECO "A57"]
[WhiteElo "2330"]
[BlackElo "2210"]
[Annotator "NA"]
[PlyCount "92"]
[EventDate "2019.07.13"]
[EventType "swiss"]
[EventCountry "GEO"]
[SourceTitle "playchess.com"]
[Source "ChessBase"]
[SourceQuality "1"]
[TimeControl "40/5400+30:1800+30"]

1. d4 {[%emt 0:00:00]} Nf6 {[%emt 0:01:06]} 2. c4 {[%emt 0:00:00]} c5 {[%emt 0:00:20]} 3. d5 {[%emt 0:00:00]} b5 {[%emt 0:00:09]} 4. Nf3 {[%emt 0:00:03]} g6 {[%emt 0:00:19]} 5. e4 {[%emt 0:04:48]} d6 {[%emt 0:04:24]} 6. cxb5 {[%emt 0:00:58]} Bg7 {[%emt 0:03:54]} 7. Nc3 {[%emt 0:01:00]} a6 {[%emt 0:00:17]} 8. a4 {[%emt 0:02:42]} O-O {[%emt 0:00:08]} 9. Bf4 {[%emt 0:07:05] A57: Benko/Volga Gambit} (9. Bd2 Nbd7 10. Be2 axb5 11. axb5 Bb7 12. O-O Nb6 13. Qc2 Qd7 14. h3 e6 15. dxe6 Qxe6 16. Rxa8 Rxa8 {0-1 (70) Karjakin,S (2783)-Nepomniachtchi,I (2751) chess.com INT 2017}) 9... Qa5 {[%emt 0:04:25]} 10. Qd2 {[%emt 0:05:30]} Qb4 $146 {[%emt 0:02:50]} ({Predecessor:} 10... axb5 11. Bxb5 Nxe4 12. Nxe4 Qxb5 13. axb5 Rxa1+ 14. Ke2 Rxh1 15. Ne1 Nd7 {1-0 (39) Rauk,T (2200)-Shlokov,V (2277) Tallinn 2006}) 11. e5 {[%emt 0:08:04]} Nh5 {[%emt 0:11:30]} 12. Bg5 {[%emt 0:04:38]} dxe5 {[%emt 0:07:25]} 13. Bxe7 {[%emt 0:02:34]} Re8 {[%emt 0:00:09]} 14. d6 {[%emt 0:07:36]} Nd7 {[%emt 0:06:58]} 15. bxa6 {[%emt 0:12:40]} Rxa6 {[%emt 0:08:35]} 16. Bb5 {[%emt 0:04:49]} Nf4 {[%emt 0:07:31]} 17. g3 {[%emt 0:12:11]} e4 {[%emt 0:01:42]} 18. gxf4 {[%emt 0:05:10]} exf3 {[%emt 0:00:35]} 19. O-O {[%emt 0:03:08]} Be5 {[%emt 0:03:51]} 20. Kh1 {[%emt 0:04:19]} Bxf4 {[%emt 0:00:41]} 21. Qd3 {[%emt 0:05:14]} Bxh2 {[%emt 0:04:42]} 22. Bxd7 Rxe7 {[%emt 0:18:06]} 23. dxe7 {[%emt 0:04:18]} Qh4 {[%emt 0:01:36]} 24. e8=Q+ {[%emt 0:01:14]} Kg7 {[%emt 0:00:01]} 25. Qxf7+ {[%emt 0:01:04]} Kxf7 {[%emt 0:00:04]} 26. Qxf3+ {[%emt 0:00:15]} Bf4+ {[%emt 0:00:30]} 27. Qh3 {[%emt 0:00:18]} Qxh3+ {[%emt 0:00:09]} 28. Bxh3 {[%emt 0:00:03]} Bxh3 {[%emt 0:00:01]} 29. Rfd1 {[%emt 0:00:58]} Bg4 {[%emt 0:00:45]} 30. Rd3 {[%emt 0:01:23]} c4 {[%emt 0:00:06]} 31. Rd4 {[%emt 0:02:54]} Bf3+ {[%emt 0:00:07]} 32. Kg1 {[%emt 0:00:01]} g5 {[%emt 0:00:04]} 33. Kf1 {[%emt 0:00:57]} Rh6 {[%emt 0:00:11]} 34. Rxf4+ {[%emt 0:00:18]} gxf4 {[%emt 0:00:04]} 35. Ne2 {[%emt 0:00:08]} Rh1+ {[%emt 0:00:44]} 36. Ng1 {[%emt 0:00:01]} h5 {[%emt 0:00:04]} 37. Ra3 {[%emt 0:00:28]} Ba8 {[%emt 0:01:05]} 38. Rh3 {[%emt 0:00:55]} Rxh3 {[%emt 0:00:15]} 39. Nxh3 {[%emt 0:00:01]} f3 {[%emt 0:00:12]} 40. Kg1 {[%emt 0:00:00]} Ke6 {[%emt 0:00:00]} 41. Kh2 {[%emt 0:11:25]} Kd6 {[%emt 0:06:32]} 42. Kg3 {[%emt 0:03:26]} Kc5 {[%emt 0:00:09]} 43. Ng5 {[%emt 0:05:02]} h4+ {[%emt 0:04:08]} 44. Kf4 {[%emt 0:00:35]} Kb4 {[%emt 0:00:35]} 45. Nxf3 {[%emt 0:00:32]} h3 {[%emt 0:00:15]} 46. Kg3 $11 {[%emt 0:03:12]} Bxf3 {[%emt 0:05:49]} 1/2-1/2

[Event "14th Poti Open-A 2019"]
[Site "Poti"]
[Date "2019.07.20"]
[Round "9.12"]
[White "Mustafayev, Farid"]
[Black "Manafov, Vugar"]
[Result "1/2-1/2"]
[ECO "B04"]
[WhiteElo "2289"]
[BlackElo "2175"]
[Annotator "NA"]
[PlyCount "92"]
[EventDate "2019.07.13"]
[EventType "swiss"]
[EventCountry "GEO"]
[SourceTitle "playchess.com"]
[Source "ChessBase"]
[SourceQuality "1"]
[TimeControl "40/5400+30:1800+30"]

1. e4 {[%emt 0:00:00]} Nf6 {[%emt 0:00:00]} 2. e5 {[%emt 0:00:00]} Nd5 {[%emt 0:00:00]} 3. d4 {[%emt 0:00:00]} d6 {[%emt 0:00:00]} 4. Nf3 {[%emt 0:00:00]} Nb6 {[%emt 0:00:00]} 5. Be2 {[%emt 0:00:05]} g6 {[%emt 0:00:00]} 6. O-O {[%emt 0:00:07]} Bg7 {[%emt 0:00:00]} 7. a4 {[%emt 0:00:25]} a5 {[%emt 0:00:00]} 8. exd6 {[%emt 0:00:36]} cxd6 {[%emt 0:00:00]} 9. Nc3 {[%emt 0:00:13]} O-O {[%emt 0:00:00]} 10. Be3 {[%emt 0:01:28]} Na6 {[%emt 0:01:41]} 11. Qd2 {[%emt 0:02:39]} Bg4 {[%emt 0:01:53]} 12. b3 {[%emt 0:03:05]} Nb4 {[%emt 0:01:47]} 13. Nb5 {[%emt 0:03:59]} Rc8 {[%emt 0:01:42]} 14. c3 {[%emt 0:09:08]} N4d5 {[%emt 0:00:07]} 15. Bg5 {[%emt 0:01:36]} f6 {[%emt 0:05:27]} 16. Bh4 {[%emt 0:05:31]} e5 {[%emt 0:01:24]} 17. h3 {[%emt 0:08:07]} Be6 {[%emt 0:00:24]} 18. Bg3 {[%emt 0:05:27]} Qe7 {[%emt 0:05:38]} 19. Rfe1 {[%emt 0:04:12]} Rfd8 {[%emt 0:02:50]} 20. Bf1 {[%emt 0:04:43]} Kh8 {[%emt 0:01:38]} 21. Rad1 {[%emt 0:01:37]} Nc7 {[%emt 0:02:21]} 22. c4 {[%emt 0:05:14]} Nxb5 {[%emt 0:00:54]} 23. axb5 {[%emt 0:00:05]} a4 {[%emt 0:01:16]} 24. Qa5 {[%emt 0:01:14]} Qc7 {[%emt 0:08:42]} 25. c5 {[%emt 0:00:56]} dxc5 {[%emt 0:02:21]} 26. dxe5 {[%emt 0:00:05]} fxe5 {[%emt 0:00:02]} 27. Rxd8+ {[%emt 0:14:59]} Qxd8 {[%emt 0:00:06]} 28. bxa4 {[%emt 0:01:24]} Ra8 {[%emt 0:00:46]} 29. Qc3 {[%emt 0:00:19]} Nxa4 {[%emt 0:01:00]} 30. Qe3 {[%emt 0:00:06]} Bg8 {[%emt 0:01:11]} 31. Bxe5 {[%emt 0:01:39]} Qf8 {[%emt 0:01:43]} 32. Ra1 {[%emt 0:06:17]} Bd5 {[%emt 0:04:36]} 33. Rd1 {[%emt 0:03:45]} Nb6 {[%emt 0:01:42]} 34. Bxg7+ {[%emt 0:04:28]} Qxg7 {[%emt 0:00:02]} 35. Qxc5 {[%emt 0:00:11]} Bxf3 {[%emt 0:00:04]} 36. gxf3 {[%emt 0:00:23]} Nd7 {[%emt 0:00:19]} 37. Qd5 {[%emt 0:03:58]} Nf6 {[%emt 0:01:21]} 38. Qd6 {[%emt 0:00:15]} Rf8 {[%emt 0:01:23]} 39. Rc1 {[%emt 0:01:23]} h6 {[%emt 0:01:13]} 40. Rc7 {[%emt 0:00:00]} Rf7 {[%emt 0:00:00]} 41. b6 {[%emt 0:02:57]} Kh7 {[%emt 0:01:00]} 42. Rxf7 {[%emt 0:00:23]} Qxf7 {[%emt 0:00:02]} 43. Qc7 {[%emt 0:00:05]} Qg7 {[%emt 0:00:35]} 44. Bc4 {[%emt 0:03:18]} Ne8 {[%emt 0:00:58]} 45. Qd8 {[%emt 0:02:19]} Qe5 {[%emt 0:01:23]} 46. Bd5 {[%emt 0:02:36]} Qd6 {[%emt 0:01:13]} 1/2-1/2

[Event "14th Poti Open-A 2019"]
[Site "Poti"]
[Date "2019.07.20"]
[Round "9.13"]
[White "Botoyan, Smbat"]
[Black "Eynullayev, Altay"]
[Result "1/2-1/2"]
[ECO "B94"]
[WhiteElo "2240"]
[BlackElo "2188"]
[Annotator "NA"]
[PlyCount "59"]
[EventDate "2019.07.13"]
[EventType "swiss"]
[EventCountry "GEO"]
[SourceTitle "playchess.com"]
[Source "ChessBase"]
[SourceQuality "1"]
[TimeControl "40/5400+30:1800+30"]

1. e4 {[%emt 0:13:51]} c5 {[%emt 0:00:00]} 2. Nf3 {[%emt 0:00:02]} d6 {[%emt 0:00:00]} 3. Nc3 {[%emt 0:00:07]} Nf6 {[%emt 0:00:00]} 4. d4 {[%emt 0:00:35]} cxd4 {[%emt 0:00:00]} 5. Nxd4 {[%emt 0:00:00]} a6 {[%emt 0:00:00]} 6. Bg5 {[%emt 0:00:14]} Nbd7 {[%emt 0:00:07]} 7. Bc4 {[%emt 0:00:06]} Qb6 {[%emt 0:00:05]} 8. O-O {[%emt 0:01:01]} e6 {[%emt 0:00:04]} 9. Bb3 {[%emt 0:07:53]} Be7 {[%emt 0:01:40]} 10. Bxe6 {[%emt 0:01:00]} fxe6 {[%emt 0:03:49]} 11. Nxe6 {[%emt 0:00:47]} Kf7 {[%emt 0:23:52]} 12. Nd5 {[%emt 0:01:41]} Nxd5 {[%emt 0:15:25]} 13. exd5 {[%emt 0:16:13]} Nf6 {[%emt 0:02:32]} 14. Re1 {[%emt 0:06:23]} Bxe6 {[%emt 0:08:46]} 15. dxe6+ {[%emt 0:03:25]} Ke8 {[%emt 0:00:09]} 16. Bxf6 {[%emt 0:01:15]} Bxf6 {[%emt 0:02:38]} 17. e7 {[%emt 0:07:32]} Kd7 {[%emt 0:17:57]} 18. c4 {[%emt 0:01:49]} Kc7 {[%emt 0:03:38]} 19. Re6 {[%emt 0:12:24]} Qd4 {[%emt 0:05:12]} 20. Qe1 {[%emt 0:07:13]} Rae8 {[%emt 0:00:29]} 21. Rd1 {[%emt 0:01:03]} Qxb2 {[%emt 0:01:20]} 22. c5 {[%emt 0:06:16]} dxc5 23. Rb1 Qd4 {[%emt 0:07:03]} 24. Qa5+ {[%emt 0:03:35]} Kd7 {[%emt 0:01:30]} 25. Ree1 {[%emt 0:00:40]} Kc8 {[%emt 0:00:32]} 26. Qb6 {[%emt 0:04:06]} Qd5 {[%emt 0:01:43]} 27. Qa7 {[%emt 0:02:15]} Bxe7 {[%emt 0:02:41]} 28. Red1 {[%emt 0:02:01]} Qc6 {[%emt 0:00:41]} 29. Rb6 {[%emt 0:00:26]} Qc7 {[%emt 0:00:49]} 30. Qa8+ {[%emt 0:00:32]} 1/2-1/2

[Event "14th Poti Open-A 2019"]
[Site "Poti"]
[Date "2019.07.20"]
[Round "9.14"]
[White "Melkonyan, Vardan"]
[Black "Tereladze, Sopiko"]
[Result "1/2-1/2"]
[ECO "C68"]
[WhiteElo "2232"]
[BlackElo "2144"]
[Annotator "NA"]
[PlyCount "59"]
[EventDate "2019.07.13"]
[EventType "swiss"]
[EventCountry "GEO"]
[SourceTitle "playchess.com"]
[Source "ChessBase"]
[SourceQuality "1"]
[TimeControl "40/5400+30:1800+30"]

1. e4 {[%emt 0:00:00]} e5 {[%emt 0:11:48]} 2. Nf3 {[%emt 0:00:00]} Nc6 3. Bb5 a6 {[%emt 0:00:50]} 4. Bxc6 {[%emt 0:00:00]} dxc6 {[%emt 0:00:06]} 5. O-O {[%emt 0:00:04]} Bd6 {[%emt 0:00:21]} 6. d3 {[%emt 0:01:43]} f6 {[%emt 0:03:57]} 7. Nbd2 {[%emt 0:01:22]} Bg4 {[%emt 0:02:28]} 8. Nc4 {[%emt 0:03:03]} Ne7 {[%emt 0:00:39]} 9. Bd2 {[%emt 0:06:26]} Qd7 {[%emt 0:02:22]} 10. b4 {[%emt 0:00:22]} O-O {[%emt 0:01:35]} 11. Ne3 {[%emt 0:03:06]} Bxf3 {[%emt 0:03:30]} 12. Qxf3 {[%emt 0:00:07]} c5 {[%emt 0:00:16]} 13. a3 {[%emt 0:01:10]} Nc6 {[%emt 0:11:52]} 14. c3 {[%emt 0:05:08]} cxb4 {[%emt 0:02:48]} 15. axb4 {[%emt 0:00:06]} a5 {[%emt 0:00:59]} 16. bxa5 {[%emt 0:05:03]} Nxa5 {[%emt 0:01:01]} 17. Rfb1 {[%emt 0:09:39]} b6 {[%emt 0:07:12]} 18. Nd5 {[%emt 0:16:46]} Nc6 {[%emt 0:04:54]} 19. Be3 {[%emt 0:10:55]} Ne7 {[%emt 0:01:56]} 20. c4 {[%emt 0:03:11]} Nxd5 {[%emt 0:01:40]} 21. cxd5 {[%emt 0:00:42]} Rxa1 {[%emt 0:05:34]} 22. Rxa1 {[%emt 0:00:05]} f5 {[%emt 0:01:34]} 23. exf5 {[%emt 0:02:21]} Qxf5 {[%emt 0:00:58]} 24. Qe4 {[%emt 0:01:24]} Qf7 {[%emt 0:03:57]} 25. g3 {[%emt 0:04:30]} b5 {[%emt 0:09:24]} 26. Kg2 {[%emt 0:02:11]} b4 {[%emt 0:00:58]} 27. Rb1 {[%emt 0:00:49]} Rb8 {[%emt 0:00:12]} 28. Qc4 {[%emt 0:02:26]} Qd7 {[%emt 0:03:16]} 29. Bc5 {[%emt 0:02:10]} Bxc5 {[%emt 0:01:00]} 30. Qxc5 {[%emt 0:00:02]} 1/2-1/2

[Event "14th Poti Open-A 2019"]
[Site "Poti"]
[Date "2019.07.20"]
[Round "9.15"]
[White "Buniatyan, David"]
[Black "Shmavonyan, Areg"]
[Result "0-1"]
[ECO "C36"]
[WhiteElo "2014"]
[BlackElo "2207"]
[Annotator "ChessBase"]
[PlyCount "87"]
[EventDate "2019.07.13"]
[EventType "swiss"]
[EventCountry "GEO"]
[SourceTitle "playchess.com"]
[Source "ChessBase"]
[SourceQuality "1"]
[TimeControl "40/5400+30:1800+30"]

1. e4 {[%emt 0:00:00]} e5 {[%emt 0:00:00]} 2. f4 {[%emt 0:00:10]} d5 {[%emt 0:00:11]} 3. exd5 {[%emt 0:00:22]} exf4 {[%emt 0:00:19]} 4. Nf3 {[%emt 0:00:20]} Nf6 {[%emt 0:00:17]} 5. Bc4 {[%emt 0:00:28]} Bd6 {[%emt 0:07:23]} 6. d4 {[%emt 0:00:54]} Qe7+ {[%emt 0:07:00]} 7. Ne5 {[%emt 0:18:32]} Bg4 {[%emt 0:23:50]} 8. Qd2 {[%emt 0:30:39]} Bxe5 {[%emt 0:02:36]} 9. dxe5 {[%emt 0:01:02]} Qxe5+ {[%emt 0:00:10]} 10. Kf1 {[%emt 0:00:25]} f3 {[%emt 0:06:19]} 11. Qf4 {[%emt 0:07:44]} Nbd7 {[%emt 0:00:59]} 12. h3 {[%emt 0:02:44]} fxg2+ {[%emt 0:11:25]} 13. Kxg2 {[%emt 0:00:04]} Bf5 {[%emt 0:00:39]} 14. Nc3 {[%emt 0:07:57]} O-O-O {[%emt 0:02:33]} 15. Be3 {[%emt 0:02:40]} Qxf4 {[%emt 0:02:08]} 16. Bxf4 {[%emt 0:00:03]} Nb6 {[%emt 0:00:23]} 17. Bb3 {[%emt 0:00:53]} Nbxd5 {[%emt 0:00:44]} 18. Nxd5 {[%emt 0:00:25]} Be4+ {[%emt 0:02:05]} 19. Kf2 {[%emt 0:00:30]} Bxd5 {[%emt 0:02:17]} 20. Rhg1 {[%emt 0:00:30]} Rhg8 {[%emt 0:03:19]} 21. Be5 {[%emt 0:02:30]} Bxb3 {[%emt 0:01:31]} 22. axb3 {[%emt 0:01:42]} a6 {[%emt 0:01:43]} 23. Bxf6 {[%emt 0:02:41]} gxf6 {[%emt 0:00:05]} 24. Rxg8 {[%emt 0:00:48]} Rxg8 {[%emt 0:00:05]} 25. Ra4 {[%emt 0:00:01]} Rg6 {[%emt 0:04:30]} 26. Rd4 {[%emt 0:00:44]} c6 {[%emt 0:04:54]} 27. Re4 {[%emt 0:01:13]} f5 {[%emt 0:04:49]} 28. Rc4 {[%emt 0:00:30]} Rd6 {[%emt 0:00:30]} 29. Rc5 {[%emt 0:00:30]} Rd2+ {[%emt 0:00:30]} 30. Kf3 {[%emt 0:00:30]} Kd7 31. h4 {[%emt 0:01:58]} Ke7 {[%emt 0:01:00]} 32. Kf4 {[%emt 0:00:27]} f6 {[%emt 0:01:31]} 33. Kxf5 {[%emt 0:07:04]} Rd5+ {[%emt 0:01:16]} 34. Rxd5 {[%emt 0:00:02]} cxd5 {[%emt 0:00:09]} 35. c4 {[%emt 0:05:30]} dxc4 {[%emt 0:00:32]} 36. bxc4 {[%emt 0:00:01]} a5 {[%emt 0:01:08]} 37. c5 {[%emt 0:01:00]} a4 {[%emt 0:00:42]} 38. h5 {[%emt 0:00:00]} Kf7 {[%emt 0:00:00]} 39. Kf4 {[%emt 0:00:00]} Ke6 {[%emt 0:00:00]} 40. Ke4 {[%emt 0:00:00]} f5+ {[%emt 0:00:00]} 41. Kd4 {[%emt 0:05:14]} h6 {[%emt 0:03:47]} 42. Kc4 {[%emt 0:00:11]} Ke5 {[%emt 0:06:29]} 43. Kb5 {[%emt 0:00:25]} f4 {[%emt 0:00:21]} 44. Kb6 {[%emt 0:00:17]} 0-1

[Event "14th Poti Open-A 2019"]
[Site "Poti"]
[Date "2019.07.20"]
[Round "9.16"]
[White "Manukyan, Sargis V."]
[Black "Nikoladze, Sopio"]
[Result "1/2-1/2"]
[ECO "D35"]
[WhiteElo "2282"]
[BlackElo "2124"]
[Annotator "NA"]
[PlyCount "51"]
[EventDate "2019.07.13"]
[EventType "swiss"]
[EventCountry "GEO"]
[SourceTitle "playchess.com"]
[Source "ChessBase"]
[SourceQuality "1"]
[TimeControl "40/5400+30:1800+30"]

1. d4 {[%emt 0:00:00]} Nf6 {[%emt 0:00:00]} 2. c4 {[%emt 0:00:05]} e6 {[%emt 0:00:00]} 3. Nc3 {[%emt 0:00:43]} d5 {[%emt 0:00:00]} 4. cxd5 {[%emt 0:00:05]} exd5 {[%emt 0:00:00]} 5. Bg5 {[%emt 0:00:05]} Be7 {[%emt 0:00:12]} 6. e3 {[%emt 0:00:05]} O-O {[%emt 0:00:18]} 7. Bd3 {[%emt 0:00:05]} c6 {[%emt 0:00:08]} 8. Qc2 {[%emt 0:00:05]} Nbd7 {[%emt 0:00:09]} 9. Nf3 {[%emt 0:00:36]} Re8 {[%emt 0:01:00]} 10. O-O {[%emt 0:00:07]} Ne4 11. Bxe4 {[%emt 0:03:34]} dxe4 {[%emt 0:04:48]} 12. Nxe4 {[%emt 0:00:20]} f6 {[%emt 0:03:41]} 13. Bf4 {[%emt 0:02:48]} Nf8 14. Nc3 {[%emt 0:03:02]} Be6 {[%emt 0:05:11]} 15. Rfe1 {[%emt 0:01:46]} Qa5 {[%emt 0:01:16]} 16. e4 {[%emt 0:01:32]} Rad8 {[%emt 0:00:57]} 17. Rad1 {[%emt 0:02:55]} Qh5 {[%emt 0:00:22]} 18. d5 {[%emt 0:02:26]} Ng6 {[%emt 0:04:40]} 19. Bg3 {[%emt 0:04:41]} Bg4 {[%emt 0:04:34]} 20. Rd3 {[%emt 0:17:30]} Bxf3 {[%emt 0:06:05]} 21. Rxf3 {[%emt 0:00:48]} Bd6 {[%emt 0:00:23]} 22. Bxd6 {[%emt 0:22:40]} Rxd6 {[%emt 0:00:28]} 23. Qb3 {[%emt 0:03:26]} cxd5 {[%emt 0:00:49]} 24. Rfe3 {[%emt 0:03:43]} Rb6 {[%emt 0:06:27]} 25. Qa4 {[%emt 0:00:35]} Ne5 {[%emt 0:01:23]} 26. exd5 {[%emt 0:13:07]} 1/2-1/2